[Event "*** Titled Tuesday Blitz"]
[Site "Chess.com"]
[Date "2021.03.09"]
[Round "5"]
[White "frederiksvane"]
[Black "Oglob71"]
[Result "1-0"]
[WhiteElo "2656"]
[BlackElo "2397"]
[TimeControl "180+1"]
[EndTime "11:00:46 PST"]
[Termination "frederiksvane won on time"]

1. e4 {[%clk 0:03:00.9]} 1... c5 {[%clk 0:02:57.9]} 2. Nf3 {[%clk 0:03:01.2]}
2... e6 {[%clk 0:02:56.5]} 3. d4 {[%clk 0:03:01.3]} 3... cxd4 {[%clk 0:02:56.3]}
4. Nxd4 {[%clk 0:03:02.2]} 4... a6 {[%clk 0:02:56.3]} 5. c4 {[%clk 0:03:01.4]}
5... Qc7 {[%clk 0:02:55.5]} 6. Nc3 {[%clk 0:03:00.7]} 6... Nf6 {[%clk 0:02:56]}
7. Be2 {[%clk 0:02:58.1]} 7... b6 {[%clk 0:02:54.8]} 8. O-O {[%clk 0:02:48.5]}
8... Bb7 {[%clk 0:02:55]} 9. f3 {[%clk 0:02:48.6]} 9... Bc5 {[%clk 0:02:51.3]}
10. Kh1 {[%clk 0:02:35.8]} 10... Nc6 {[%clk 0:02:47.4]} 11. Nb3 {[%clk
0:02:31.9]} 11... O-O {[%clk 0:02:37.6]} 12. Bg5 {[%clk 0:02:20.5]} 12... Be7
{[%clk 0:02:34.1]} 13. Qd2 {[%clk 0:02:17.5]} 13... d6 {[%clk 0:02:31.6]} 14.
Rac1 {[%clk 0:02:16.4]} 14... Ne5 {[%clk 0:02:31.2]} 15. Be3 {[%clk 0:01:48.4]}
15... Rac8 {[%clk 0:02:29.3]} 16. Na4 {[%clk 0:01:46.8]} 16... Ned7 {[%clk
0:02:28]} 17. Nd4 {[%clk 0:01:45.8]} 17... Rfe8 {[%clk 0:02:22.1]} 18. b4 {[%clk
0:01:43.4]} 18... Qb8 {[%clk 0:02:21.9]} 19. Nb3 {[%clk 0:01:40.6]} 19... Bd8
{[%clk 0:02:20.3]} 20. c5 {[%clk 0:01:31.5]} 20... b5 {[%clk 0:02:09.4]} 21. Nb2
{[%clk 0:01:18.9]} 21... dxc5 {[%clk 0:02:09]} 22. bxc5 {[%clk 0:01:12.5]} 22...
Ne5 {[%clk 0:02:05.7]} 23. Qe1 {[%clk 0:01:06.6]} 23... Nc6 {[%clk 0:01:56.9]}
24. a4 {[%clk 0:00:54.8]} 24... bxa4 {[%clk 0:01:43.5]} 25. Nxa4 {[%clk
0:00:55.7]} 25... Bc7 {[%clk 0:01:42.8]} 26. Bg1 {[%clk 0:00:56]} 26... Nh5
{[%clk 0:01:27.1]} 27. Rb1 {[%clk 0:00:56.2]} 27... Nf4 {[%clk 0:01:24.7]} 28.
Nd2 {[%clk 0:00:23.7]} 28... Nxe2 {[%clk 0:01:19.3]} 29. Qxe2 {[%clk 0:00:24.6]}
29... Rcd8 {[%clk 0:01:18.9]} 30. Nc4 {[%clk 0:00:23.6]} 30... e5 {[%clk
0:01:00.9]} 31. Rfc1 {[%clk 0:00:12.8]} 31... Qc8 {[%clk 0:01:00.4]} 32. Nab6
{[%clk 0:00:10.3]} 32... Qe6 {[%clk 0:00:59]} 33. Nd5 {[%clk 0:00:10.6]} 33...
Qc8 {[%clk 0:00:57.6]} 34. Ncb6 {[%clk 0:00:07.2]} 34... Bxb6 {[%clk 0:00:53.5]}
35. cxb6 {[%clk 0:00:08.1]} 35... Qd7 {[%clk 0:00:45.7]} 36. Rc5 {[%clk
0:00:07.8]} 36... Rc8 {[%clk 0:00:42.2]} 37. Rbc1 {[%clk 0:00:07.9]} 37... h6
{[%clk 0:00:39.8]} 38. Qb2 {[%clk 0:00:08.3]} 38... Kh7 {[%clk 0:00:37.8]} 39.
Nc7 {[%clk 0:00:08.5]} 39... Red8 {[%clk 0:00:35.5]} 40. Rd5 {[%clk 0:00:08.4]}
40... Qe7 {[%clk 0:00:32.1]} 41. Rcd1 {[%clk 0:00:08.9]} 41... Nd4 {[%clk
0:00:30.2]} 42. Rxd8 {[%clk 0:00:06.4]} 42... Rxd8 {[%clk 0:00:30.1]} 43. Bxd4
{[%clk 0:00:06.9]} 43... exd4 {[%clk 0:00:30.4]} 44. Kg1 {[%clk 0:00:04]} 44...
Qc5 {[%clk 0:00:29.2]} 45. Rd3 {[%clk 0:00:04.2]} 45... Qc4 {[%clk 0:00:28.8]}
46. Qd2 {[%clk 0:00:04.2]} 46... a5 {[%clk 0:00:27.9]} 47. Kf2 {[%clk 0:00:04]}
47... Ba6 {[%clk 0:00:28.1]} 48. Ra3 {[%clk 0:00:04.1]} 48... a4 {[%clk
0:00:25.4]} 49. Nd5 {[%clk 0:00:02.7]} 49... d3 {[%clk 0:00:24.7]} 50. Kg3
{[%clk 0:00:02.5]} 50... Qd4 {[%clk 0:00:23.2]} 51. Rc3 {[%clk 0:00:01.8]} 51...
Qe5+ {[%clk 0:00:23.1]} 52. Kf2 {[%clk 0:00:02]} 52... Bb7 {[%clk 0:00:23.2]}
53. Rxd3 {[%clk 0:00:02.3]} 53... Bxd5 {[%clk 0:00:21.9]} 54. Rxd5 {[%clk
0:00:03.2]} 54... Rxd5 {[%clk 0:00:21.2]} 55. exd5 {[%clk 0:00:04.1]} 55... Qd6
{[%clk 0:00:21.5]} 56. Qb2 {[%clk 0:00:03.7]} 56... a3 {[%clk 0:00:20.4]} 57.
Qb1+ {[%clk 0:00:04.2]} 57... g6 {[%clk 0:00:17.6]} 58. b7 {[%clk 0:00:04.2]}
58... a2 {[%clk 0:00:15.3]} 59. Qxa2 {[%clk 0:00:04.3]} 59... Qb6+ {[%clk
0:00:15.8]} 60. Kf1 {[%clk 0:00:04]} 60... Qxb7 {[%clk 0:00:16.7]} 61. h3 {[%clk
0:00:03.5]} 61... Qc7 {[%clk 0:00:16.1]} 62. Qd2 {[%clk 0:00:03.4]} 62... Qd6
{[%clk 0:00:14.7]} 63. Qd4 {[%clk 0:00:03.8]} 63... h5 {[%clk 0:00:13.7]} 64. h4
{[%clk 0:00:03.2]} 64... Kg8 {[%clk 0:00:12.7]} 65. Kf2 {[%clk 0:00:03.5]} 65...
Kf8 {[%clk 0:00:12.7]} 66. Qe4 {[%clk 0:00:04]} 66... Kg7 {[%clk 0:00:11.2]} 67.
Ke3 {[%clk 0:00:02.5]} 67... Qc5+ {[%clk 0:00:11.1]} 68. Qd4+ {[%clk 0:00:02.9]}
68... Qxd4+ {[%clk 0:00:11.6]} 69. Kxd4 {[%clk 0:00:03.8]} 69... Kf6 {[%clk
0:00:11]} 70. Ke4 {[%clk 0:00:03.9]} 70... Ke7 {[%clk 0:00:09.1]} 71. g4 {[%clk
0:00:04]} 71... hxg4 {[%clk 0:00:03.6]} 72. fxg4 {[%clk 0:00:04.9]} 72... f6
{[%clk 0:00:03.8]} 73. Kf4 {[%clk 0:00:01.9]} 73... Kd6 {[%clk 0:00:03.2]} 74.
h5 {[%clk 0:00:02.4]} 74... gxh5 {[%clk 0:00:01.2]} 75. gxh5 {[%clk 0:00:03.3]}
75... Kxd5 {[%clk 0:00:01.6]} 76. h6 {[%clk 0:00:03.5]} 76... Ke6 {[%clk
0:00:01.1]} 77. h7 {[%clk 0:00:03.9]} 77... Kf7 {[%clk 0:00:01.5]} 78. h8=Q
{[%clk 0:00:04.3]} 78... Kg6 {[%clk 0:00:01.8]} 79. Qh4 {[%clk 0:00:04.4]} 1-0

[Event "*** Titled Tuesday Blitz"]
[Site "Chess.com"]
[Date "2021.03.09"]
[Round "5"]
[White "Reader777"]
[Black "Deepweb2020"]
[Result "1-0"]
[WhiteElo "2797"]
[BlackElo "2466"]
[TimeControl "180+1"]
[EndTime "11:01:02 PST"]
[Termination "Reader777 won by checkmate"]

1. d4 {[%clk 0:03:00.9]} 1... Nf6 {[%clk 0:02:54.8]} 2. c4 {[%clk 0:03:01.1]}
2... e6 {[%clk 0:02:54.2]} 3. g3 {[%clk 0:03:00.6]} 3... d5 {[%clk 0:02:52.2]}
4. Bg2 {[%clk 0:03:00.2]} 4... Be7 {[%clk 0:02:52.8]} 5. Nf3 {[%clk 0:02:59.7]}
5... O-O {[%clk 0:02:52.9]} 6. O-O {[%clk 0:02:59.2]} 6... dxc4 {[%clk
0:02:52.5]} 7. Qc2 {[%clk 0:02:58.7]} 7... a6 {[%clk 0:02:45.2]} 8. a4 {[%clk
0:02:57.8]} 8... b6 {[%clk 0:02:42.2]} 9. Qxc4 {[%clk 0:02:55.9]} 9... Bb7
{[%clk 0:02:39.6]} 10. Rd1 {[%clk 0:02:55.7]} 10... b5 {[%clk 0:02:32.2]} 11.
Qa2 {[%clk 0:02:23.3]} 11... Nbd7 {[%clk 0:02:22.4]} 12. b3 {[%clk 0:02:08.4]}
12... Nb6 {[%clk 0:02:17.6]} 13. Ba3 {[%clk 0:02:02.4]} 13... b4 {[%clk
0:02:08.7]} 14. Bb2 {[%clk 0:02:01.7]} 14... a5 {[%clk 0:02:03.4]} 15. Nbd2
{[%clk 0:02:00.6]} 15... Bd5 {[%clk 0:01:35.7]} 16. Rac1 {[%clk 0:01:58.1]}
16... Qc8 {[%clk 0:01:32.2]} 17. Nc4 {[%clk 0:01:33.4]} 17... Qb7 {[%clk
0:01:24.9]} 18. Ne3 {[%clk 0:01:18.6]} 18... Be4 {[%clk 0:01:16.6]} 19. Ne5
{[%clk 0:01:10.6]} 19... Bxg2 {[%clk 0:01:14.9]} 20. Nxg2 {[%clk 0:01:11.1]}
20... Nbd5 {[%clk 0:00:52.8]} 21. Nc6 {[%clk 0:01:09.1]} 21... Rfe8 {[%clk
0:00:41.6]} 22. Qb1 {[%clk 0:01:08.2]} 22... Ra6 {[%clk 0:00:38.7]} 23. Nxe7+
{[%clk 0:00:58]} 23... Nxe7 {[%clk 0:00:34.9]} 24. Rc5 {[%clk 0:00:49.2]} 24...
Ne4 {[%clk 0:00:32.3]} 25. Rb5 {[%clk 0:00:49.1]} 25... Qa8 {[%clk 0:00:29.4]}
26. f3 {[%clk 0:00:49]} 26... c6 {[%clk 0:00:24.8]} 27. Rh5 {[%clk 0:00:42.4]}
27... Nf6 {[%clk 0:00:24.6]} 28. Rc5 {[%clk 0:00:42.5]} 28... Rd8 {[%clk
0:00:23]} 29. e4 {[%clk 0:00:40.2]} 29... Ra7 {[%clk 0:00:18.9]} 30. Ne3 {[%clk
0:00:36.8]} 30... Nd7 {[%clk 0:00:15.8]} 31. Rcc1 {[%clk 0:00:36.3]} 31... Nb6
{[%clk 0:00:14.9]} 32. Qc2 {[%clk 0:00:36.6]} 32... Rad7 {[%clk 0:00:14.9]} 33.
Qc5 {[%clk 0:00:36.7]} 33... Qa7 {[%clk 0:00:13.8]} 34. Kg2 {[%clk 0:00:32.1]}
34... Nec8 {[%clk 0:00:12.6]} 35. Qxc6 {[%clk 0:00:30.1]} 35... Ne7 {[%clk
0:00:11.5]} 36. Qb5 {[%clk 0:00:29.8]} 36... Ng6 {[%clk 0:00:11.2]} 37. Rc6
{[%clk 0:00:25.8]} 37... Rb7 {[%clk 0:00:11.2]} 38. Qc5 {[%clk 0:00:24.2]} 38...
Ne7 {[%clk 0:00:08.5]} 39. Rd6 {[%clk 0:00:23.1]} 39... Rc8 {[%clk 0:00:09]} 40.
Qh5 {[%clk 0:00:19.9]} 40... Rbc7 {[%clk 0:00:07.1]} 41. Rd2 {[%clk 0:00:17.7]}
41... Ng6 {[%clk 0:00:06.6]} 42. Qb5 {[%clk 0:00:14.9]} 42... Ne7 {[%clk
0:00:06.4]} 43. Qe2 {[%clk 0:00:13.4]} 43... Nd7 {[%clk 0:00:06.2]} 44. d5
{[%clk 0:00:12.6]} 44... exd5 {[%clk 0:00:05.7]} 45. Nxd5 {[%clk 0:00:13.1]}
45... Nxd5 {[%clk 0:00:06]} 46. R6xd5 {[%clk 0:00:13.8]} 46... Nf8 {[%clk
0:00:06]} 47. Qf2 {[%clk 0:00:13.1]} 47... Qa8 {[%clk 0:00:05.7]} 48. Qd4 {[%clk
0:00:12.3]} 48... Ne6 {[%clk 0:00:05.7]} 49. Qe5 {[%clk 0:00:12.6]} 49... Rc2
{[%clk 0:00:05.2]} 50. Kh3 {[%clk 0:00:08.6]} 50... Qc6 {[%clk 0:00:04.8]} 51.
Rxc2 {[%clk 0:00:07.7]} 51... Qxc2 {[%clk 0:00:04.6]} 52. Rd6 {[%clk 0:00:07]}
52... Qc7 {[%clk 0:00:01.3]} 53. Rxe6 {[%clk 0:00:04.9]} 53... f6 {[%clk
0:00:01.8]} 54. Qxc7 {[%clk 0:00:04.4]} 54... Rxc7 {[%clk 0:00:02.7]} 55. Ra6
{[%clk 0:00:05]} 55... Rc2 {[%clk 0:00:03.6]} 56. Bd4 {[%clk 0:00:05.5]} 56...
Rd2 {[%clk 0:00:03.8]} 57. Bb6 {[%clk 0:00:05.7]} 57... Rd3 {[%clk 0:00:04.3]}
58. Bxa5 {[%clk 0:00:06.3]} 58... Rxb3 {[%clk 0:00:05.2]} 59. Rb6 {[%clk
0:00:07]} 59... Ra3 {[%clk 0:00:05.3]} 60. Rxb4 {[%clk 0:00:06.4]} 60... g5
{[%clk 0:00:06.2]} 61. Bb6 {[%clk 0:00:06.3]} 61... Kg7 {[%clk 0:00:05.4]} 62.
a5 {[%clk 0:00:06.5]} 62... Kg6 {[%clk 0:00:06.3]} 63. Kg2 {[%clk 0:00:05.8]}
63... h5 {[%clk 0:00:07.2]} 64. Bf2 {[%clk 0:00:05.8]} 64... Ra2 {[%clk
0:00:08.1]} 65. Rb5 {[%clk 0:00:06.1]} 65... g4 {[%clk 0:00:06.2]} 66. fxg4
{[%clk 0:00:06.7]} 66... hxg4 {[%clk 0:00:06.2]} 67. e5 {[%clk 0:00:07.4]} 67...
f5 {[%clk 0:00:06.4]} 68. e6 {[%clk 0:00:07.4]} 68... Kf6 {[%clk 0:00:06.6]} 69.
e7 {[%clk 0:00:06.1]} 69... Re2 {[%clk 0:00:06.4]} 70. Rb7 {[%clk 0:00:05.1]}
70... Ra2 {[%clk 0:00:06]} 71. a6 {[%clk 0:00:04.7]} 71... Kf7 {[%clk
0:00:05.8]} 72. a7 {[%clk 0:00:04.7]} 72... Ke8 {[%clk 0:00:05]} 73. Rb8+ {[%clk
0:00:04.6]} 73... Kxe7 {[%clk 0:00:05.4]} 74. a8=Q {[%clk 0:00:05.2]} 74... Rd2
{[%clk 0:00:05.9]} 75. Qb7+ {[%clk 0:00:04.8]} 75... Rd7 {[%clk 0:00:05.5]} 76.
Qb4+ {[%clk 0:00:05.3]} 76... Kf7 {[%clk 0:00:05.5]} 77. Qf8+ {[%clk 0:00:05.7]}
77... Kg6 {[%clk 0:00:06]} 78. Rb6+ {[%clk 0:00:06.1]} 78... Kh7 {[%clk
0:00:05.2]} 79. Rh6# {[%clk 0:00:06.1]} 1-0

[Event "*** Titled Tuesday Blitz"]
[Site "Chess.com"]
[Date "2021.03.09"]
[Round "5"]
[White "Ladislav1969"]
[Black "arminmusovic"]
[Result "0-1"]
[WhiteElo "2329"]
[BlackElo "2508"]
[TimeControl "180+1"]
[EndTime "11:01:03 PST"]
[Termination "arminmusovic won on time"]

1. e4 {[%clk 0:03:00.9]} 1... c6 {[%clk 0:02:59.2]} 2. d4 {[%clk 0:03:00.8]}
2... d5 {[%clk 0:03:00.1]} 3. e5 {[%clk 0:03:01.5]} 3... c5 {[%clk 0:03:00.2]}
4. dxc5 {[%clk 0:03:00.6]} 4... Nc6 {[%clk 0:03:00.8]} 5. Be3 {[%clk 0:02:57.5]}
5... Nh6 {[%clk 0:03:00.1]} 6. Bd4 {[%clk 0:02:55.9]} 6... Bf5 {[%clk
0:02:55.2]} 7. c3 {[%clk 0:02:55.8]} 7... e6 {[%clk 0:02:53.1]} 8. Nf3 {[%clk
0:02:54.6]} 8... Be7 {[%clk 0:02:51.9]} 9. Bb5 {[%clk 0:02:51.6]} 9... Rc8
{[%clk 0:02:49.7]} 10. O-O {[%clk 0:02:50.8]} 10... O-O {[%clk 0:02:49.7]} 11.
Bxc6 {[%clk 0:02:43.1]} 11... Rxc6 {[%clk 0:02:48.1]} 12. b4 {[%clk 0:02:44]}
12... Rc8 {[%clk 0:02:41.3]} 13. Nbd2 {[%clk 0:02:43.1]} 13... f6 {[%clk
0:02:32.6]} 14. Re1 {[%clk 0:02:41.5]} 14... Bg4 {[%clk 0:02:28.2]} 15. h3
{[%clk 0:02:39.9]} 15... Bxf3 {[%clk 0:02:26.3]} 16. Nxf3 {[%clk 0:02:39.1]}
16... f5 {[%clk 0:02:26.8]} 17. a4 {[%clk 0:02:32.5]} 17... g5 {[%clk
0:02:15.3]} 18. Qd2 {[%clk 0:02:31]} 18... Kh8 {[%clk 0:02:09.8]} 19. Rac1
{[%clk 0:02:21.6]} 19... Rg8 {[%clk 0:02:04.4]} 20. c4 {[%clk 0:02:15.7]} 20...
Rg6 {[%clk 0:02:00.6]} 21. cxd5 {[%clk 0:02:12.2]} 21... Qxd5 {[%clk 0:01:48.9]}
22. Be3 {[%clk 0:02:10.7]} 22... Qb3 {[%clk 0:01:39.6]} 23. Qd7 {[%clk
0:02:08.2]} 23... Rcg8 {[%clk 0:01:33.4]} 24. Qxe7 {[%clk 0:02:05.5]} 24... f4
{[%clk 0:01:31.1]} 25. Bd4 {[%clk 0:01:54.2]} 25... R8g7 {[%clk 0:01:29.8]} 26.
Qf8+ {[%clk 0:01:43]} 26... Rg8 {[%clk 0:01:29.1]} 27. Qd6 {[%clk 0:01:42.2]}
27... Nf5 {[%clk 0:01:25.2]} 28. Qd7 {[%clk 0:01:31.2]} 28... g4 {[%clk
0:01:20.2]} 29. hxg4 {[%clk 0:01:23.8]} 29... Rxg4 {[%clk 0:01:21.1]} 30. Rc3
{[%clk 0:01:11.6]} 30... Rxg2+ {[%clk 0:01:00.1]} 31. Kf1 {[%clk 0:01:10.9]}
31... Qxb4 {[%clk 0:00:53.8]} 32. Qxe6 {[%clk 0:00:59.1]} 32... Nxd4 {[%clk
0:00:49.6]} 33. Rc4 {[%clk 0:00:55.3]} 33... Qxc4+ {[%clk 0:00:29]} 34. Qxc4
{[%clk 0:00:53.2]} 34... Nxf3 {[%clk 0:00:29.6]} 35. Qxf4 {[%clk 0:00:45.1]}
35... Rg1+ {[%clk 0:00:25.2]} 36. Ke2 {[%clk 0:00:45.3]} 36... Nxe1 {[%clk
0:00:22.8]} 37. Qf6+ {[%clk 0:00:43.8]} 37... R8g7 {[%clk 0:00:21.4]} 38. e6
{[%clk 0:00:24.3]} 38... Rg6 {[%clk 0:00:20.3]} 39. e7 {[%clk 0:00:15.6]} 39...
Rxf6 {[%clk 0:00:20]} 40. e8=Q+ {[%clk 0:00:16.2]} 40... Rg8 {[%clk 0:00:20.6]}
41. Qe5 {[%clk 0:00:16.1]} 41... Rf8 {[%clk 0:00:19.9]} 42. Kxe1 {[%clk
0:00:16.1]} 42... Rf7 {[%clk 0:00:20.6]} 43. f4 {[%clk 0:00:14.8]} 43... a6
{[%clk 0:00:20.5]} 44. Kd2 {[%clk 0:00:14.9]} 44... Kg8 {[%clk 0:00:20.7]} 45.
Ke3 {[%clk 0:00:13.4]} 45... Rxf4 {[%clk 0:00:21.1]} 46. Qg5+ {[%clk 0:00:13.5]}
46... Kf8 {[%clk 0:00:21]} 47. Qd8+ {[%clk 0:00:13.2]} 47... Kg7 {[%clk
0:00:21.6]} 48. Qg5+ {[%clk 0:00:13]} 48... Kh8 {[%clk 0:00:21.1]} 49. Qd8+
{[%clk 0:00:12.1]} 49... Rf8 {[%clk 0:00:20.1]} 50. Qe7 {[%clk 0:00:11.8]} 50...
R4f7 {[%clk 0:00:20.1]} 51. Qe5+ {[%clk 0:00:11.1]} 51... Kg8 {[%clk 0:00:20]}
52. Qg5+ {[%clk 0:00:10.7]} 52... Rg7 {[%clk 0:00:20.5]} 53. Qd5+ {[%clk
0:00:10.8]} 53... Kh8 {[%clk 0:00:20.5]} 54. c6 {[%clk 0:00:10.5]} 54... bxc6
{[%clk 0:00:20]} 55. Qxc6 {[%clk 0:00:10.3]} 55... Rg6 {[%clk 0:00:20]} 56. Qc3+
{[%clk 0:00:09.7]} 56... Rff6 {[%clk 0:00:20.7]} 57. Qc8+ {[%clk 0:00:09.3]}
57... Kg7 {[%clk 0:00:21.6]} 58. Qd7+ {[%clk 0:00:09.6]} 58... Kh6 {[%clk
0:00:22.5]} 59. Qh3+ {[%clk 0:00:09.4]} 59... Kg5 {[%clk 0:00:23.1]} 60. Qg3+
{[%clk 0:00:09.4]} 60... Kf5 {[%clk 0:00:23]} 61. Qf4+ {[%clk 0:00:10.3]} 61...
Ke6 {[%clk 0:00:23.3]} 62. Qe4+ {[%clk 0:00:11]} 62... Kd6 {[%clk 0:00:23.9]}
63. Qd4+ {[%clk 0:00:10.2]} 63... Kc6 {[%clk 0:00:24.1]} 64. Qc4+ {[%clk
0:00:10.5]} 64... Kd7 {[%clk 0:00:23.8]} 65. Qd5+ {[%clk 0:00:10.4]} 65... Rd6
{[%clk 0:00:22.3]} 66. Qb7+ {[%clk 0:00:11.3]} 66... Ke6 {[%clk 0:00:22]} 67.
Qe4+ {[%clk 0:00:11.3]} 67... Kf6 {[%clk 0:00:21.7]} 68. Qf4+ {[%clk 0:00:11.7]}
68... Kg7 {[%clk 0:00:22.3]} 69. Qh4 {[%clk 0:00:11.4]} 69... Rge6+ {[%clk
0:00:22.3]} 70. Kf3 {[%clk 0:00:11.3]} 70... Rd3+ {[%clk 0:00:22.5]} 71. Kf2
{[%clk 0:00:11.6]} 71... Rd2+ {[%clk 0:00:22.6]} 72. Kf3 {[%clk 0:00:12]} 72...
Rd3+ {[%clk 0:00:21.5]} 73. Kf2 {[%clk 0:00:12.2]} 73... Rde3 {[%clk 0:00:21.2]}
74. Qg5+ {[%clk 0:00:11.6]} 74... Kf7 {[%clk 0:00:21.1]} 75. Qh5+ {[%clk
0:00:10.6]} 75... Kg8 {[%clk 0:00:21.6]} 76. Qg5+ {[%clk 0:00:10]} 76... Kh8
{[%clk 0:00:22]} 77. Qd8+ {[%clk 0:00:08.8]} 77... Kg7 {[%clk 0:00:22.4]} 78.
Qd7+ {[%clk 0:00:08.6]} 78... Kg6 {[%clk 0:00:22.5]} 79. a5 {[%clk 0:00:06.8]}
79... R3e5 {[%clk 0:00:21.5]} 80. Qb7 {[%clk 0:00:04.7]} 80... Rf6+ {[%clk
0:00:21.7]} 81. Kg3 {[%clk 0:00:03.8]} 81... Rg5+ {[%clk 0:00:22.6]} 82. Kh4
{[%clk 0:00:03.2]} 82... Rf4+ {[%clk 0:00:22.7]} 83. Kh3 {[%clk 0:00:03.4]}
83... Rf6 {[%clk 0:00:22]} 84. Qe4+ {[%clk 0:00:02]} 84... Kh6 {[%clk
0:00:21.9]} 85. Qe7 {[%clk 0:00:01.3]} 85... Rfg6 {[%clk 0:00:21.6]} 86. Qf8+
{[%clk 0:00:01.4]} 86... Rg7 {[%clk 0:00:22]} 87. Qf6+ {[%clk 0:00:02]} 87...
Kh5 {[%clk 0:00:19.4]} 88. Qf3+ {[%clk 0:00:01.9]} 88... Rg4 {[%clk 0:00:19.8]}
89. Qf5+ {[%clk 0:00:01.3]} 89... Kh6 {[%clk 0:00:20]} 90. Qf6+ {[%clk
0:00:01.5]} 90... R7g6 {[%clk 0:00:20.2]} 91. Qf8+ {[%clk 0:00:01.4]} 91... Rg7
{[%clk 0:00:20.6]} 92. Qe7 {[%clk 0:00:02.1]} 92... Rg3+ {[%clk 0:00:19.6]} 93.
Kh4 {[%clk 0:00:01.3]} 93... R3g4+ {[%clk 0:00:20]} 0-1

[Event "*** Titled Tuesday Blitz"]
[Site "Chess.com"]
[Date "2021.03.09"]
[Round "5"]
[White "anon102030"]
[Black "Philosopherrr"]
[Result "0-1"]
[WhiteElo "2687"]
[BlackElo "2522"]
[TimeControl "180+1"]
[EndTime "11:01:07 PST"]
[Termination "Philosopherrr won on time"]

1. e4 {[%clk 0:03:00.9]} 1... e5 {[%clk 0:02:59.5]} 2. Nc3 {[%clk 0:02:59]} 2...
Bc5 {[%clk 0:02:58.5]} 3. g3 {[%clk 0:02:58.3]} 3... Nf6 {[%clk 0:02:58]} 4. Bg2
{[%clk 0:02:58.7]} 4... d6 {[%clk 0:02:58.4]} 5. d3 {[%clk 0:02:59]} 5... Nc6
{[%clk 0:02:56.5]} 6. Nf3 {[%clk 0:02:58.5]} 6... h6 {[%clk 0:02:47.7]} 7. Be3
{[%clk 0:02:56.2]} 7... a6 {[%clk 0:02:43.6]} 8. d4 {[%clk 0:02:53.9]} 8... Bb4
{[%clk 0:02:21.8]} 9. Qd3 {[%clk 0:02:41.3]} 9... O-O {[%clk 0:02:11.2]} 10. O-O
{[%clk 0:02:36.3]} 10... Bg4 {[%clk 0:02:06]} 11. d5 {[%clk 0:02:26]} 11... Ne7
{[%clk 0:01:58.3]} 12. Nd2 {[%clk 0:02:18.2]} 12... Qd7 {[%clk 0:01:39.2]} 13.
f4 {[%clk 0:02:09.1]} 13... exf4 {[%clk 0:01:33.4]} 14. Rxf4 {[%clk 0:02:00.6]}
14... Nh5 {[%clk 0:01:23]} 15. Rf2 {[%clk 0:01:57.9]} 15... Ng6 {[%clk 0:01:21]}
16. Bd4 {[%clk 0:01:33.5]} 16... Rae8 {[%clk 0:01:10.1]} 17. Nc4 {[%clk
0:01:27.3]} 17... b5 {[%clk 0:01:01.8]} 18. Ne3 {[%clk 0:01:25.6]} 18... Ne5
{[%clk 0:01:02]} 19. Bxe5 {[%clk 0:01:23.8]} 19... Rxe5 {[%clk 0:01:02.5]} 20.
Raf1 {[%clk 0:01:03.8]} 20... Bc5 {[%clk 0:01:01.8]} 21. Kh1 {[%clk 0:01:03.3]}
21... Bh3 {[%clk 0:01:00.1]} 22. Rf3 {[%clk 0:00:49.3]} 22... Bxg2+ {[%clk
0:00:48.2]} 23. Kxg2 {[%clk 0:00:50.2]} 23... Bxe3 {[%clk 0:00:25.7]} 24. Rxe3
{[%clk 0:00:47.7]} 24... b4 {[%clk 0:00:20.3]} 25. Ne2 {[%clk 0:00:43]} 25... f5
{[%clk 0:00:20.1]} 26. exf5 {[%clk 0:00:34.8]} 26... Rexf5 {[%clk 0:00:19.4]}
27. Rxf5 {[%clk 0:00:33.1]} 27... Qxf5 {[%clk 0:00:19.5]} 28. Qxf5 {[%clk
0:00:26.1]} 28... Rxf5 {[%clk 0:00:19.9]} 29. Rd3 {[%clk 0:00:26.4]} 29... Re5
{[%clk 0:00:18]} 30. Kf3 {[%clk 0:00:25.2]} 30... Nf6 {[%clk 0:00:18.4]} 31. c4
{[%clk 0:00:22.3]} 31... g5 {[%clk 0:00:17]} 32. h3 {[%clk 0:00:21.8]} 32... h5
{[%clk 0:00:16.8]} 33. g4 {[%clk 0:00:21.7]} 33... hxg4+ {[%clk 0:00:16.6]} 34.
hxg4 {[%clk 0:00:22.6]} 34... a5 {[%clk 0:00:17.1]} 35. Ng3 {[%clk 0:00:21.4]}
35... Nd7 {[%clk 0:00:17.2]} 36. b3 {[%clk 0:00:15.9]} 36... Kg7 {[%clk
0:00:17.3]} 37. Rd4 {[%clk 0:00:13.3]} 37... Nc5 {[%clk 0:00:15.8]} 38. Nf5+
{[%clk 0:00:12.3]} 38... Kf6 {[%clk 0:00:16.3]} 39. Rd2 {[%clk 0:00:12]} 39...
Re4 {[%clk 0:00:15.8]} 40. Nd4 {[%clk 0:00:10.7]} 40... Rf4+ {[%clk 0:00:15.6]}
41. Ke3 {[%clk 0:00:10.7]} 41... Rxg4 {[%clk 0:00:14.8]} 42. Nb5 {[%clk
0:00:10.5]} 42... Re4+ {[%clk 0:00:15]} 43. Kf3 {[%clk 0:00:10.6]} 43... Rf4+
{[%clk 0:00:15.3]} 44. Kg2 {[%clk 0:00:10.3]} 44... Ne4 {[%clk 0:00:15.2]} 45.
Re2 {[%clk 0:00:09.4]} 45... Nc3 {[%clk 0:00:15.6]} 46. Rc2 {[%clk 0:00:08.7]}
46... Nxb5 {[%clk 0:00:14.8]} 47. cxb5 {[%clk 0:00:09.6]} 47... Rd4 {[%clk
0:00:15.2]} 48. Rxc7 {[%clk 0:00:09.7]} 48... Rxd5 {[%clk 0:00:15.7]} 49. b6
{[%clk 0:00:10.4]} 49... Rb5 {[%clk 0:00:16.1]} 50. b7 {[%clk 0:00:10.5]} 50...
Ke6 {[%clk 0:00:16.1]} 51. Kf3 {[%clk 0:00:10.7]} 51... Rf5+ {[%clk 0:00:15]}
52. Kg4 {[%clk 0:00:10.4]} 52... Rb5 {[%clk 0:00:15.6]} 53. Rg7 {[%clk
0:00:10.3]} 53... Rb6 {[%clk 0:00:13.5]} 54. Rxg5 {[%clk 0:00:09]} 54... Rxb7
{[%clk 0:00:13]} 55. Rxa5 {[%clk 0:00:09.6]} 55... d5 {[%clk 0:00:13.5]} 56. Kf4
{[%clk 0:00:10.1]} 56... Kd6 {[%clk 0:00:13.8]} 57. Ke3 {[%clk 0:00:10.2]} 57...
Ke5 {[%clk 0:00:13.7]} 58. Ra8 {[%clk 0:00:09.6]} 58... Rc7 {[%clk 0:00:12.4]}
59. Rb8 {[%clk 0:00:06.6]} 59... Rc2 {[%clk 0:00:11.2]} 60. Ra8 {[%clk 0:00:05]}
60... Rh2 {[%clk 0:00:10.2]} 61. Kd3 {[%clk 0:00:05.1]} 61... Rh3+ {[%clk
0:00:09.9]} 62. Kd2 {[%clk 0:00:05.8]} 62... Kd4 {[%clk 0:00:10.3]} 63. Ra4
{[%clk 0:00:04.8]} 63... Rh2+ {[%clk 0:00:10.5]} 64. Kd1 {[%clk 0:00:04.8]}
64... Kc3 {[%clk 0:00:11.4]} 65. Ra7 {[%clk 0:00:03.6]} 65... d4 {[%clk
0:00:11.8]} 66. Rc7+ {[%clk 0:00:04.1]} 66... Kd3 {[%clk 0:00:11.9]} 67. Kc1
{[%clk 0:00:04.4]} 67... Rxa2 {[%clk 0:00:12.2]} 68. Rb7 {[%clk 0:00:04.5]}
68... Kc3 {[%clk 0:00:11.7]} 69. Kb1 {[%clk 0:00:04.1]} 69... Kxb3 {[%clk
0:00:12]} 70. Rd7 {[%clk 0:00:03.5]} 70... Rd2 {[%clk 0:00:11.6]} 71. Kc1 {[%clk
0:00:04.2]} 71... Rc2+ {[%clk 0:00:11.3]} 72. Kd1 {[%clk 0:00:04]} 72... Rc4
{[%clk 0:00:10.1]} 73. Kd2 {[%clk 0:00:04.1]} 73... Kb2 {[%clk 0:00:10.6]} 74.
Kd3 {[%clk 0:00:04.2]} 74... Rc1 {[%clk 0:00:10.6]} 75. Rb7 {[%clk 0:00:03.6]}
75... b3 {[%clk 0:00:10.3]} 76. Kd2 {[%clk 0:00:04.5]} 76... Rc2+ {[%clk
0:00:10.4]} 77. Kd3 {[%clk 0:00:04.8]} 77... Rc1 {[%clk 0:00:10.7]} 78. Kxd4
{[%clk 0:00:04.4]} 78... Rc8 {[%clk 0:00:09.8]} 79. Kd3 {[%clk 0:00:04.2]} 79...
Rd8+ {[%clk 0:00:10.1]} 80. Kc4 {[%clk 0:00:03.7]} 80... Kc2 {[%clk 0:00:10.3]}
81. Rg7 {[%clk 0:00:02.8]} 81... Rc8+ {[%clk 0:00:09.4]} 82. Kb4 {[%clk
0:00:02.6]} 82... b2 {[%clk 0:00:09.9]} 83. Rg2+ {[%clk 0:00:02.8]} 83... Kb1
{[%clk 0:00:10.4]} 84. Rg1+ {[%clk 0:00:03.4]} 84... Ka2 {[%clk 0:00:10.7]} 85.
Rg2 {[%clk 0:00:03.8]} 85... Rc1 {[%clk 0:00:10.1]} 86. Rh2 {[%clk 0:00:03.7]}
86... Ka1 {[%clk 0:00:10.5]} 87. Ka3 {[%clk 0:00:02.7]} 87... b1=Q {[%clk
0:00:09.6]} 88. Rc2 {[%clk 0:00:03.1]} 88... Rd1 {[%clk 0:00:05.5]} 89. Rc1
{[%clk 0:00:01.1]} 89... Qxc1+ {[%clk 0:00:05.8]} 0-1